[Event "Late-Titled-Tuesday-Blitz-March-12-2024"]
[Site "Chess.com"]
[Date "2024.03.12"]
[Round "8"]
[White "Vadim_Galchenko"]
[Black "TigrVShlyape"]
[Result "1/2-1/2"]
[WhiteElo "2603"]
[BlackElo "2886"]
[TimeControl "180+1"]
[EndTime "15:27:01 PDT"]
[Termination "Game drawn by agreement"]

1. e4 {[%clk 0:03:00.9]} 1... e5 {[%clk 0:02:54.3]} 2. Nc3 {[%clk 0:03:00]} 2...
Nf6 {[%clk 0:02:53.3]} 3. Bc4 {[%clk 0:03:00.2]} 3... Nc6 {[%clk 0:02:49.9]} 4.
d3 {[%clk 0:03:00.3]} 4... Bb4 {[%clk 0:02:48.3]} 5. Ne2 {[%clk 0:03:00.1]} 5...
d5 {[%clk 0:02:48.2]} 6. exd5 {[%clk 0:03:01]} 6... Nxd5 {[%clk 0:02:48]} 7. O-O
{[%clk 0:03:01.3]} 7... Nxc3 {[%clk 0:02:42.5]} 8. bxc3 {[%clk 0:03:00.8]} 8...
Bd6 {[%clk 0:02:42.5]} 9. Ng3 {[%clk 0:02:56]} 9... Na5 {[%clk 0:02:33.3]} 10.
Bb3 {[%clk 0:02:53.7]} 10... O-O {[%clk 0:02:31.5]} 11. Qh5 {[%clk 0:02:49.7]}
11... Nxb3 {[%clk 0:02:22.7]} 12. axb3 {[%clk 0:02:50.6]} 12... f5 {[%clk
0:02:20.4]} 13. f4 {[%clk 0:02:40.5]} 13... g6 {[%clk 0:01:52]} 14. Qf3 {[%clk
0:02:31.5]} 14... c6 {[%clk 0:01:51.6]} 15. fxe5 {[%clk 0:02:30.3]} 15... Bxe5
{[%clk 0:01:51.2]} 16. d4 {[%clk 0:02:30.9]} 16... Bg7 {[%clk 0:01:45.2]} 17.
Bf4 {[%clk 0:02:22.2]} 17... Be6 {[%clk 0:01:43.5]} 18. Rfe1 {[%clk 0:02:16.1]}
18... Bd5 {[%clk 0:01:43.1]} 19. Qd3 {[%clk 0:02:16]} 19... Re8 {[%clk
0:01:39.8]} 20. Qd2 {[%clk 0:01:57.4]} 20... a6 {[%clk 0:01:34.9]} 21. Bg5
{[%clk 0:01:44.5]} 21... Qd7 {[%clk 0:01:32.2]} 22. Bh6 {[%clk 0:01:43.2]} 22...
Bh8 {[%clk 0:01:30.5]} 23. h4 {[%clk 0:01:41.5]} 23... Bf7 {[%clk 0:01:16.4]}
24. h5 {[%clk 0:01:35.3]} 24... c5 {[%clk 0:01:08.9]} 25. dxc5 {[%clk
0:01:18.9]} 25... Qxd2 {[%clk 0:00:59.8]} 26. Bxd2 {[%clk 0:01:19.8]} 26... Rad8
{[%clk 0:00:56.1]} 27. hxg6 {[%clk 0:01:04.1]} 27... hxg6 {[%clk 0:00:55.6]} 28.
Rxe8+ {[%clk 0:00:53.4]} 28... Bxe8 {[%clk 0:00:54.7]} 29. Be1 {[%clk
0:00:53.3]} 29... Bc6 {[%clk 0:00:51.1]} 30. Ne2 {[%clk 0:00:47.2]} 30... Be4
{[%clk 0:00:50.3]} 31. Rc1 {[%clk 0:00:45.3]} 31... Bg7 {[%clk 0:00:45.4]} 32.
Nf4 {[%clk 0:00:42.9]} 32... Kf7 {[%clk 0:00:44.9]} 33. b4 {[%clk 0:00:34.1]}
33... g5 {[%clk 0:00:42.8]} 34. Ne2 {[%clk 0:00:32.6]} 34... f4 {[%clk
0:00:40.9]} 35. c4 {[%clk 0:00:23]} 35... Bb2 {[%clk 0:00:35.2]} 36. Rb1 {[%clk
0:00:21.7]} 36... Be5 {[%clk 0:00:34.3]} 37. Rc1 {[%clk 0:00:21.1]} 37... g4
{[%clk 0:00:26.8]} 38. Bc3 {[%clk 0:00:20.6]} 38... Bc7 {[%clk 0:00:24.6]} 39.
Rf1 {[%clk 0:00:19.2]} 39... f3 {[%clk 0:00:22.9]} 40. Nd4 {[%clk 0:00:19.5]}
40... Kg6 {[%clk 0:00:14.7]} 41. gxf3 {[%clk 0:00:19.5]} 41... gxf3 {[%clk
0:00:14.6]} 42. Nxf3 {[%clk 0:00:19.8]} 42... Bxc2 {[%clk 0:00:12.6]} 43. Ne5+
{[%clk 0:00:18.8]} 43... Bxe5 {[%clk 0:00:11.8]} 44. Bxe5 {[%clk 0:00:19.7]}
44... Rd1 {[%clk 0:00:09.6]} 45. Rxd1 {[%clk 0:00:19.5]} 45... Bxd1 {[%clk
0:00:10]} 46. Kf2 {[%clk 0:00:20.1]} 46... Bb3 {[%clk 0:00:09.8]} 47. Ke3 {[%clk
0:00:20.6]} 47... Bxc4 {[%clk 0:00:10.1]} 48. Kd4 {[%clk 0:00:19.8]} 1/2-1/2

[Event "Late-Titled-Tuesday-Blitz-March-12-2024"]
[Site "Chess.com"]
[Date "2024.03.12"]
[Round "8"]
[White "djano"]
[Black "mbojan"]
[Result "0-1"]
[WhiteElo "2586"]
[BlackElo "2879"]
[TimeControl "180+1"]
[EndTime "15:27:01 PDT"]
[Termination "mbojan won on time"]

1. Nf3 {[%clk 0:02:59.3]} 1... a6 {[%clk 0:03:00.9]} 2. c4 {[%clk 0:02:58]} 2...
b5 {[%clk 0:02:55.6]} 3. e4 {[%clk 0:02:56.9]} 3... Bb7 {[%clk 0:02:54.5]} 4. e5
{[%clk 0:02:53.1]} 4... Bxf3 {[%clk 0:02:48.1]} 5. Qxf3 {[%clk 0:02:52.5]} 5...
Nc6 {[%clk 0:02:48.8]} 6. Qg3 {[%clk 0:02:44]} 6... Nd4 {[%clk 0:02:27]} 7. Bd3
{[%clk 0:02:36.4]} 7... bxc4 {[%clk 0:02:24.7]} 8. Be4 {[%clk 0:02:36.7]} 8...
Nh6 {[%clk 0:02:19.4]} 9. Qc3 {[%clk 0:02:26.2]} 9... Nc6 {[%clk 0:02:08.3]} 10.
O-O {[%clk 0:02:15.5]} 10... e6 {[%clk 0:02:06.4]} 11. d4 {[%clk 0:02:09.5]}
11... f5 {[%clk 0:01:26.5]} 12. exf6 {[%clk 0:02:03.9]} 12... gxf6 {[%clk
0:01:20.5]} 13. Qxc4 {[%clk 0:01:57.6]} 13... Ne7 {[%clk 0:01:12.6]} 14. d5
{[%clk 0:01:51.9]} 14... c6 {[%clk 0:00:59.1]} 15. d6 {[%clk 0:01:25.8]} 15...
Neg8 {[%clk 0:00:53.6]} 16. Rd1 {[%clk 0:01:22]} 16... Nf7 {[%clk 0:00:44.9]}
17. Bf4 {[%clk 0:01:12.8]} 17... Rc8 {[%clk 0:00:41.8]} 18. Nc3 {[%clk
0:01:05.4]} 18... Bh6 {[%clk 0:00:41.3]} 19. Bg3 {[%clk 0:01:02.5]} 19... f5
{[%clk 0:00:40]} 20. Bxf5 {[%clk 0:00:53.9]} 20... exf5 {[%clk 0:00:39.8]} 21.
Re1+ {[%clk 0:00:45.9]} 21... Kf8 {[%clk 0:00:40.2]} 22. Na4 {[%clk 0:00:34.5]}
22... Qf6 {[%clk 0:00:40]} 23. Nc5 {[%clk 0:00:34.2]} 23... Rd8 {[%clk
0:00:39.9]} 24. Nb7 {[%clk 0:00:30.5]} 24... f4 {[%clk 0:00:34.5]} 25. Nxd8
{[%clk 0:00:27.1]} 25... Nxd8 {[%clk 0:00:35.4]} 26. Qe4 {[%clk 0:00:11.8]}
26... Ne6 {[%clk 0:00:34.6]} 27. Qa4 {[%clk 0:00:08.9]} 27... Kg7 {[%clk
0:00:32]} 28. Qxa6 {[%clk 0:00:08.6]} 28... fxg3 {[%clk 0:00:32.3]} 29. fxg3
{[%clk 0:00:09.5]} 29... Qd4+ {[%clk 0:00:32.6]} 30. Kh1 {[%clk 0:00:09.7]}
30... Nf6 {[%clk 0:00:33.4]} 31. Rad1 {[%clk 0:00:09]} 31... Qxb2 {[%clk
0:00:33.9]} 32. Qa7 {[%clk 0:00:09]} 32... Re8 {[%clk 0:00:33.8]} 33. Rb1 {[%clk
0:00:06.7]} 33... Qd2 {[%clk 0:00:32.9]} 34. Red1 {[%clk 0:00:06.1]} 34... Qe3
{[%clk 0:00:32.5]} 35. Qb7 {[%clk 0:00:02.2]} 35... Nc5 {[%clk 0:00:31.6]} 36.
Qa7 {[%clk 0:00:02]} 36... Nfe4 {[%clk 0:00:32]} 37. h3 {[%clk 0:00:01.4]} 37...
Nxg3+ {[%clk 0:00:32.1]} 38. Kh2 {[%clk 0:00:02.3]} 38... Bf4 {[%clk 0:00:32.4]}
39. Re1 {[%clk 0:00:02.1]} 39... Nh5+ {[%clk 0:00:24.2]} 40. Kh1 {[%clk
0:00:02.3]} 40... Qxe1+ {[%clk 0:00:24.7]} 0-1

[Event "Late-Titled-Tuesday-Blitz-March-12-2024"]
[Site "Chess.com"]
[Date "2024.03.12"]
[Round "8"]
[White "N4700000"]
[Black "Mbneu"]
[Result "1-0"]
[WhiteElo "2496"]
[BlackElo "2262"]
[TimeControl "180+1"]
[EndTime "15:27:03 PDT"]
[Termination "N4700000 won by resignation"]

1. e4 {[%clk 0:03:00.9]} 1... c5 {[%clk 0:02:57.1]} 2. a3 {[%clk 0:02:59.8]}
2... Nc6 {[%clk 0:02:50.2]} 3. b4 {[%clk 0:02:56.9]} 3... cxb4 {[%clk
0:02:49.1]} 4. axb4 {[%clk 0:02:57.8]} 4... e5 {[%clk 0:02:46.6]} 5. b5 {[%clk
0:02:55.3]} 5... Nd4 {[%clk 0:02:46.3]} 6. c3 {[%clk 0:02:53.6]} 6... Ne6 {[%clk
0:02:45.4]} 7. Nf3 {[%clk 0:02:53.3]} 7... f6 {[%clk 0:02:38.8]} 8. Bc4 {[%clk
0:02:48.4]} 8... Nf4 {[%clk 0:02:35.9]} 9. O-O {[%clk 0:02:46.5]} 9... d5 {[%clk
0:02:33.2]} 10. exd5 {[%clk 0:02:45.1]} 10... Bg4 {[%clk 0:02:31.8]} 11. d4
{[%clk 0:02:42.3]} 11... Nxd5 {[%clk 0:02:07.1]} 12. dxe5 {[%clk 0:02:39.2]}
12... Nb6 {[%clk 0:02:00.4]} 13. Qb3 {[%clk 0:02:02.4]} 13... Nxc4 {[%clk
0:01:56.2]} 14. Qxc4 {[%clk 0:02:03.3]} 14... Bxf3 {[%clk 0:01:56.2]} 15. gxf3
{[%clk 0:02:00.1]} 15... fxe5 {[%clk 0:01:39.3]} 16. Re1 {[%clk 0:01:59.2]}
16... Bd6 {[%clk 0:01:34.2]} 17. f4 {[%clk 0:01:49.2]} 17... Rc8 {[%clk
0:01:31.8]} 18. Qe6+ {[%clk 0:01:46.9]} 18... Ne7 {[%clk 0:01:28.9]} 19. fxe5
{[%clk 0:01:45.8]} 19... Bc5 {[%clk 0:01:26.6]} 20. Be3 {[%clk 0:01:37.5]} 20...
Qd5 {[%clk 0:01:22.4]} 21. Qxd5 {[%clk 0:01:30.7]} 21... Nxd5 {[%clk 0:01:23.3]}
22. Bxc5 {[%clk 0:01:27.9]} 22... Rxc5 {[%clk 0:01:24.2]} 23. Rxa7 {[%clk
0:01:25.9]} 23... O-O {[%clk 0:01:21]} 24. Rxb7 {[%clk 0:01:24.1]} 24... Nf4
{[%clk 0:01:18.1]} 25. Re3 {[%clk 0:01:13.3]} 25... Rd5 {[%clk 0:01:04.2]} 26.
Re1 {[%clk 0:01:00.7]} 26... Rd3 {[%clk 0:00:53.1]} 27. e6 {[%clk 0:00:48.1]}
27... Nh3+ {[%clk 0:00:52.3]} 28. Kg2 {[%clk 0:00:46.3]} 28... Rxf2+ {[%clk
0:00:50]} 29. Kh1 {[%clk 0:00:46.2]} 29... Rf8 {[%clk 0:00:41.8]} 30. e7 {[%clk
0:00:41]} 30... Re8 {[%clk 0:00:41.1]} 31. c4 {[%clk 0:00:37.3]} 31... Nf2+
{[%clk 0:00:34.7]} 32. Kg2 {[%clk 0:00:36.5]} 32... Ng4 {[%clk 0:00:34]} 33. c5
{[%clk 0:00:33.6]} 33... Rb3 {[%clk 0:00:21.6]} 34. Nd2 {[%clk 0:00:24.9]} 34...
Rd3 {[%clk 0:00:17.9]} 35. Re2 {[%clk 0:00:24.3]} 35... Ne3+ {[%clk 0:00:17]}
36. Kg1 {[%clk 0:00:21.9]} 36... Nd5 {[%clk 0:00:16.1]} 37. c6 {[%clk
0:00:16.5]} 37... Rc3 {[%clk 0:00:16]} 38. Rf2 {[%clk 0:00:15.2]} 38... Ne3
{[%clk 0:00:13.2]} 39. Nf1 {[%clk 0:00:14]} 39... Rc1 {[%clk 0:00:12.1]} 40. b6
{[%clk 0:00:13.1]} 40... Rxc6 {[%clk 0:00:06.4]} 41. Nxe3 {[%clk 0:00:12.4]} 1-0

[Event "Late-Titled-Tuesday-Blitz-March-12-2024"]
[Site "Chess.com"]
[Date "2024.03.12"]
[Round "8"]
[White "Yeritsyaan"]
[Black "imdvb6307"]
[Result "1-0"]
[WhiteElo "2649"]
[BlackElo "2509"]
[TimeControl "180+1"]
[EndTime "15:27:08 PDT"]
[Termination "Yeritsyaan won on time"]

1. Nf3 {[%clk 0:02:47.5]} 1... d5 {[%clk 0:02:59.4]} 2. b3 {[%clk 0:02:47.6]}
2... c5 {[%clk 0:02:43.4]} 3. Bb2 {[%clk 0:02:47.5]} 3... f6 {[%clk 0:02:42.9]}
4. e3 {[%clk 0:02:47.8]} 4... e5 {[%clk 0:02:42.5]} 5. d4 {[%clk 0:02:48.3]}
5... cxd4 {[%clk 0:02:41]} 6. exd4 {[%clk 0:02:49.2]} 6... e4 {[%clk 0:02:41.4]}
7. Nfd2 {[%clk 0:02:49.8]} 7... f5 {[%clk 0:02:26.8]} 8. c4 {[%clk 0:02:49.7]}
8... Nf6 {[%clk 0:02:26.8]} 9. Nc3 {[%clk 0:02:49.4]} 9... Nc6 {[%clk 0:02:25]}
10. cxd5 {[%clk 0:02:47.3]} 10... Nb4 {[%clk 0:02:07.9]} 11. Bb5+ {[%clk
0:02:43.8]} 11... Bd7 {[%clk 0:02:07.5]} 12. Bc4 {[%clk 0:02:38.2]} 12... Qa5
{[%clk 0:01:43.3]} 13. O-O {[%clk 0:02:35.5]} 13... b5 {[%clk 0:01:40.2]} 14. a3
{[%clk 0:02:23.7]} 14... Na6 {[%clk 0:01:19.9]} 15. b4 {[%clk 0:02:17.1]} 15...
Qb6 {[%clk 0:01:20]} 16. Bb3 {[%clk 0:02:15.7]} 16... Bd6 {[%clk 0:01:16]} 17.
Rc1 {[%clk 0:02:06.3]} 17... O-O {[%clk 0:01:14.9]} 18. Ne2 {[%clk 0:02:03.7]}
18... Ng4 {[%clk 0:00:55]} 19. h3 {[%clk 0:01:59]} 19... Nf6 {[%clk 0:00:49.8]}
20. Rc5 {[%clk 0:01:53.9]} 20... Rae8 {[%clk 0:00:47.3]} 21. Qc2 {[%clk
0:01:50.8]} 21... Bb8 {[%clk 0:00:44.8]} 22. Rc6 {[%clk 0:01:43.5]} 22... Bxc6
{[%clk 0:00:33.9]} 23. dxc6+ {[%clk 0:01:44.4]} 23... Kh8 {[%clk 0:00:33.5]} 24.
d5 {[%clk 0:01:27.7]} 24... e3 {[%clk 0:00:26.6]} 25. Nf3 {[%clk 0:01:24.5]}
25... exf2+ {[%clk 0:00:25.4]} 26. Kh1 {[%clk 0:01:23]} 26... Qe3 {[%clk
0:00:21.9]} 27. Ned4 {[%clk 0:01:01.9]} 27... Ne4 {[%clk 0:00:20.5]} 28. g3
{[%clk 0:00:41.3]} 28... Nxg3+ {[%clk 0:00:19.8]} 29. Kg2 {[%clk 0:00:42]} 29...
Ne4 {[%clk 0:00:19.2]} 30. Ne6 {[%clk 0:00:36.8]} 30... Qh6 {[%clk 0:00:17]} 31.
Bxg7+ {[%clk 0:00:35.5]} 31... Qxg7+ {[%clk 0:00:17.2]} 32. Nxg7 {[%clk
0:00:36.4]} 32... Rg8 {[%clk 0:00:17.5]} 33. h4 {[%clk 0:00:21.8]} 33... Rxg7+
{[%clk 0:00:17.5]} 34. Ng5 {[%clk 0:00:22.4]} 34... h6 {[%clk 0:00:16.9]} 35.
Rh1 {[%clk 0:00:21.9]} 35... Nxg5 {[%clk 0:00:13.6]} 36. hxg5 {[%clk 0:00:22.8]}
36... Rxg5+ {[%clk 0:00:13.9]} 37. Kxf2 {[%clk 0:00:23]} 37... Kh7 {[%clk
0:00:11.4]} 38. Qd2 {[%clk 0:00:18.1]} 38... Bg3+ {[%clk 0:00:11.3]} 39. Kf3
{[%clk 0:00:17.7]} 39... f4 {[%clk 0:00:11.6]} 40. Qd3+ {[%clk 0:00:17.7]} 40...
Kg7 {[%clk 0:00:11.3]} 41. Qd4+ {[%clk 0:00:17.5]} 41... Rge5 {[%clk 0:00:06.2]}
42. Rh5 {[%clk 0:00:16.1]} 42... Kf6 {[%clk 0:00:05.1]} 43. d6 {[%clk
0:00:16.3]} 1-0

[Event "Late-Titled-Tuesday-Blitz-March-12-2024"]
[Site "Chess.com"]
[Date "2024.03.12"]
[Round "8"]
[White "thesupera12"]
[Black "ansko1999"]
[Result "0-1"]
[WhiteElo "2450"]
[BlackElo "2679"]
[TimeControl "180+1"]
[EndTime "15:27:08 PDT"]
[Termination "ansko1999 won by resignation"]

1. e4 {[%clk 0:03:00.9]} 1... d6 {[%clk 0:02:59.8]} 2. d4 {[%clk 0:02:57.4]}
2... Nf6 {[%clk 0:03:00.1]} 3. Nc3 {[%clk 0:02:56.1]} 3... c6 {[%clk 0:02:59.8]}
4. g3 {[%clk 0:02:55.9]} 4... e5 {[%clk 0:02:57.6]} 5. dxe5 {[%clk 0:02:55.1]}
5... dxe5 {[%clk 0:02:58.5]} 6. Qxd8+ {[%clk 0:02:55.4]} 6... Kxd8 {[%clk
0:02:59.2]} 7. Bg5 {[%clk 0:02:56.2]} 7... Nd7 {[%clk 0:02:56.2]} 8. O-O-O
{[%clk 0:02:57.1]} 8... Kc7 {[%clk 0:02:38.6]} 9. Bc4 {[%clk 0:02:55.4]} 9...
Bc5 {[%clk 0:02:32.2]} 10. Bxf7 {[%clk 0:02:48.3]} 10... Bxf2 {[%clk 0:02:27.2]}
11. Nf3 {[%clk 0:02:47.6]} 11... Rf8 {[%clk 0:02:19.2]} 12. Be6 {[%clk 0:02:18]}
12... Nc5 {[%clk 0:01:29.3]} 13. Bxc8 {[%clk 0:02:13]} 13... Raxc8 {[%clk
0:01:29.2]} 14. Nxe5 {[%clk 0:02:08.3]} 14... Rce8 {[%clk 0:01:13.3]} 15. Bf4
{[%clk 0:01:45.3]} 15... g5 {[%clk 0:01:01.7]} 16. Nd3+ {[%clk 0:01:25.7]} 16...
gxf4 {[%clk 0:01:01.1]} 17. Nxf2 {[%clk 0:01:26.4]} 17... Nfxe4 {[%clk
0:00:49.6]} 18. Nfxe4 {[%clk 0:01:22.1]} 18... Nxe4 {[%clk 0:00:50.5]} 19. Nxe4
{[%clk 0:01:22.6]} 19... Rxe4 {[%clk 0:00:51.4]} 20. gxf4 {[%clk 0:01:21.4]}
20... Rfxf4 {[%clk 0:00:49]} 21. Rhf1 {[%clk 0:01:16.7]} 21... h5 {[%clk
0:00:41.1]} 22. Rxf4 {[%clk 0:01:13.6]} 22... Rxf4 {[%clk 0:00:42]} 23. Rg1
{[%clk 0:01:11.4]} 23... Rf2 {[%clk 0:00:40]} 24. h3 {[%clk 0:01:08.2]} 24...
Rh2 {[%clk 0:00:37.1]} 25. Rg3 {[%clk 0:01:07.6]} 25... h4 {[%clk 0:00:36.2]}
26. Rd3 {[%clk 0:01:06.4]} 26... b5 {[%clk 0:00:34.7]} 27. b4 {[%clk 0:01:05.9]}
27... Kb6 {[%clk 0:00:34.7]} 28. Kb2 {[%clk 0:01:05.7]} 28... a5 {[%clk
0:00:33.3]} 29. a3 {[%clk 0:01:04.5]} 29... a4 {[%clk 0:00:32.3]} 30. Rf3 {[%clk
0:01:01.1]} 30... Kc7 {[%clk 0:00:31.1]} 31. Rd3 {[%clk 0:01:00.4]} 31... Rh1
{[%clk 0:00:24.5]} 32. Ka2 {[%clk 0:00:58.6]} 32... c5 {[%clk 0:00:21.2]} 33.
bxc5 {[%clk 0:00:41.3]} 33... Kc6 {[%clk 0:00:21.5]} 34. Kb2 {[%clk 0:00:40.4]}
34... Kxc5 {[%clk 0:00:21.6]} 35. Kc3 {[%clk 0:00:23.7]} 35... Rg1 {[%clk
0:00:17.1]} 36. Kd2 {[%clk 0:00:23.8]} 36... Rg3 {[%clk 0:00:07.8]} 37. Rc3+
{[%clk 0:00:17.3]} 37... Rxc3 {[%clk 0:00:02.9]} 38. Kxc3 {[%clk 0:00:17.3]}
38... b4+ {[%clk 0:00:03.6]} 39. axb4+ {[%clk 0:00:18.2]} 39... Kb5 {[%clk
0:00:04.3]} 40. Kd3 {[%clk 0:00:14.7]} 40... Kxb4 {[%clk 0:00:04.6]} 41. c4
{[%clk 0:00:13.8]} 41... a3 {[%clk 0:00:04.3]} 42. Kc2 {[%clk 0:00:14]} 42...
Kxc4 {[%clk 0:00:04.5]} 43. Kb1 {[%clk 0:00:14.4]} 43... Kd3 {[%clk 0:00:04.5]}
44. Ka2 {[%clk 0:00:15.3]} 44... Ke3 {[%clk 0:00:05.4]} 45. Kxa3 {[%clk
0:00:16.2]} 45... Kf3 {[%clk 0:00:06.3]} 46. Kb2 {[%clk 0:00:17.1]} 46... Kg3
{[%clk 0:00:07.2]} 47. Kc2 {[%clk 0:00:18]} 47... Kxh3 {[%clk 0:00:08.1]} 48.
Kd2 {[%clk 0:00:18.9]} 48... Kg2 {[%clk 0:00:09]} 49. Ke2 {[%clk 0:00:19.8]}
49... h3 {[%clk 0:00:09.9]} 50. Ke3 {[%clk 0:00:20.2]} 50... h2 {[%clk
0:00:10.8]} 0-1

[Event "Late-Titled-Tuesday-Blitz-March-12-2024"]
[Site "Chess.com"]
[Date "2024.03.12"]
[Round "8"]
[White "Walter_White_Poland"]
[Black "miraitrunks"]
[Result "1-0"]
[WhiteElo "2359"]
[BlackElo "2178"]
[TimeControl "180+1"]
[EndTime "15:27:14 PDT"]
[Termination "Walter_White_Poland won by resignation"]

1. e4 {[%clk 0:02:55.5]} 1... e6 {[%clk 0:03:00.3]} 2. d4 {[%clk 0:02:50.2]}
2... d5 {[%clk 0:03:01.2]} 3. Nc3 {[%clk 0:02:49.9]} 3... Bb4 {[%clk 0:03:00.3]}
4. e5 {[%clk 0:02:49.8]} 4... Qd7 {[%clk 0:02:59.3]} 5. a3 {[%clk 0:02:49.1]}
5... Bf8 {[%clk 0:02:58.5]} 6. Nh3 {[%clk 0:02:43.9]} 6... b6 {[%clk 0:02:58.5]}
7. Nf4 {[%clk 0:02:43]} 7... Ba6 {[%clk 0:02:58.1]} 8. Bxa6 {[%clk 0:02:41.8]}
8... Nxa6 {[%clk 0:02:59]} 9. Qe2 {[%clk 0:02:36.6]} 9... Nb8 {[%clk 0:02:58.4]}
10. Nh5 {[%clk 0:02:32.1]} 10... c5 {[%clk 0:02:55]} 11. f4 {[%clk 0:02:28.8]}
11... cxd4 {[%clk 0:02:53.7]} 12. Nb5 {[%clk 0:02:27.2]} 12... g6 {[%clk
0:02:49.1]} 13. Nf6+ {[%clk 0:02:24.6]} 13... Nxf6 {[%clk 0:02:48.2]} 14. exf6
{[%clk 0:02:24.8]} 14... Nc6 {[%clk 0:02:47.5]} 15. Qd3 {[%clk 0:02:13.2]} 15...
a6 {[%clk 0:02:12.4]} 16. Nxd4 {[%clk 0:02:11.8]} 16... Nxd4 {[%clk 0:02:13.3]}
17. Qxd4 {[%clk 0:02:12.1]} 17... Bc5 {[%clk 0:02:13.6]} 18. Qe5 {[%clk
0:01:49.5]} 18... O-O {[%clk 0:01:52.8]} 19. Bd2 {[%clk 0:01:27.7]} 19... a5
{[%clk 0:01:29.8]} 20. h4 {[%clk 0:01:10.2]} 20... d4 {[%clk 0:01:16.2]} 21. h5
{[%clk 0:01:06.3]} 21... Qd5 {[%clk 0:01:15.8]} 22. Qxd5 {[%clk 0:00:47.5]}
22... exd5 {[%clk 0:01:14.9]} 23. Ke2 {[%clk 0:00:45.1]} 23... Rfe8+ {[%clk
0:01:13.7]} 24. Kd3 {[%clk 0:00:45.1]} 24... Re6 {[%clk 0:01:10.6]} 25. g4
{[%clk 0:00:43.2]} 25... Rxf6 {[%clk 0:01:09.4]} 26. Rae1 {[%clk 0:00:39.9]}
26... Re6 {[%clk 0:01:03.8]} 27. f5 {[%clk 0:00:34.1]} 27... Ree8 {[%clk
0:00:53.9]} 28. hxg6 {[%clk 0:00:32.9]} 28... fxg6 {[%clk 0:00:53.2]} 29. Re6
{[%clk 0:00:31.5]} 29... Kf7 {[%clk 0:00:46.1]} 30. Rxh7+ {[%clk 0:00:30]} 30...
Kg8 {[%clk 0:00:43.5]} 31. Rxe8+ {[%clk 0:00:23.4]} 31... Rxe8 {[%clk
0:00:42.5]} 32. Bh6 {[%clk 0:00:16.8]} 32... gxf5 {[%clk 0:00:32.1]} 33. Rg7+
{[%clk 0:00:15.4]} 33... Kh8 {[%clk 0:00:27.2]} 34. gxf5 {[%clk 0:00:14.8]}
34... Re3+ {[%clk 0:00:24.1]} 35. Bxe3 {[%clk 0:00:13.6]} 35... Kxg7 {[%clk
0:00:23.7]} 36. Bxd4+ {[%clk 0:00:13]} 36... Kf7 {[%clk 0:00:23.8]} 37. Bxc5
{[%clk 0:00:06]} 37... bxc5 {[%clk 0:00:24.7]} 38. b4 {[%clk 0:00:06.2]} 38...
c4+ {[%clk 0:00:08.3]} 39. Kd4 {[%clk 0:00:06.1]} 1-0

[Event "Late-Titled-Tuesday-Blitz-March-12-2024"]
[Site "Chess.com"]
[Date "2024.03.12"]
[Round "8"]
[White "maurovargas01"]
[Black "lluiss"]
[Result "0-1"]
[WhiteElo "1837"]
[BlackElo "2238"]
[TimeControl "180+1"]
[EndTime "15:27:17 PDT"]
[Termination "lluiss won on time"]

1. e4 {[%clk 0:02:17.1]} 1... c5 {[%clk 0:02:57.5]} 2. Nc3 {[%clk 0:02:16.8]}
2... d6 {[%clk 0:02:57.7]} 3. f4 {[%clk 0:02:17.7]} 3... g6 {[%clk 0:02:56.5]}
4. Nf3 {[%clk 0:02:18.6]} 4... Bg7 {[%clk 0:02:56.5]} 5. Bb5+ {[%clk 0:02:16.9]}
5... Bd7 {[%clk 0:02:56.2]} 6. Bxd7+ {[%clk 0:02:17.2]} 6... Qxd7 {[%clk
0:02:53.7]} 7. d3 {[%clk 0:02:18.1]} 7... Nc6 {[%clk 0:02:53.5]} 8. O-O {[%clk
0:02:18.2]} 8... e6 {[%clk 0:02:53.5]} 9. Ne2 {[%clk 0:02:18]} 9... Nge7 {[%clk
0:02:53.4]} 10. c3 {[%clk 0:02:17.9]} 10... O-O {[%clk 0:02:48.3]} 11. Qe1
{[%clk 0:02:16.9]} 11... d5 {[%clk 0:02:47.9]} 12. e5 {[%clk 0:02:15.4]} 12...
b5 {[%clk 0:02:25.3]} 13. g4 {[%clk 0:02:14.4]} 13... b4 {[%clk 0:02:24.5]} 14.
Qh4 {[%clk 0:02:12.9]} 14... f5 {[%clk 0:02:04.4]} 15. exf6 {[%clk 0:02:10.1]}
15... Bxf6 {[%clk 0:02:04.4]} 16. Ng5 {[%clk 0:01:59.1]} 16... Nc8 {[%clk
0:01:54.1]} 17. Be3 {[%clk 0:01:50.2]} 17... d4 {[%clk 0:01:44.5]} 18. cxd4
{[%clk 0:01:44.2]} 18... cxd4 {[%clk 0:01:44.2]} 19. Bf2 {[%clk 0:01:40.1]}
19... Nb6 {[%clk 0:01:44.2]} 20. b3 {[%clk 0:01:37.5]} 20... Rac8 {[%clk
0:01:41.4]} 21. Rac1 {[%clk 0:01:37]} 21... Rc7 {[%clk 0:01:37.6]} 22. Rc2
{[%clk 0:01:33.3]} 22... Rfc8 {[%clk 0:01:26.8]} 23. Rfc1 {[%clk 0:01:32.9]}
23... Nd8 {[%clk 0:01:27]} 24. Rxc7 {[%clk 0:01:31.1]} 24... Rxc7 {[%clk
0:01:26.9]} 25. Rxc7 {[%clk 0:01:27.8]} 25... Qxc7 {[%clk 0:01:26.7]} 26. Nxd4
{[%clk 0:01:17.6]} 26... Qg7 {[%clk 0:01:19.3]} 27. Ndf3 {[%clk 0:00:52.5]}
27... h6 {[%clk 0:01:18.3]} 28. Nxe6 {[%clk 0:00:34.6]} 28... Nxe6 {[%clk
0:01:15.9]} 29. g5 {[%clk 0:00:34]} 29... hxg5 {[%clk 0:01:14.1]} 30. fxg5
{[%clk 0:00:32]} 30... Be7 {[%clk 0:01:03.5]} 31. Qg4 {[%clk 0:00:24.8]} 31...
Nf8 {[%clk 0:00:55.7]} 32. Bd4 {[%clk 0:00:20.1]} 32... Qf7 {[%clk 0:00:47.3]}
33. Qh3 {[%clk 0:00:17.3]} 33... Nh7 {[%clk 0:00:41.3]} 34. Qg3 {[%clk
0:00:14.7]} 34... Nd7 {[%clk 0:00:19]} 35. Qc7 {[%clk 0:00:13.3]} 35... Qxf3
{[%clk 0:00:16.6]} 36. Qc8+ {[%clk 0:00:09.7]} 36... Kf7 {[%clk 0:00:15.1]} 37.
Qxd7 {[%clk 0:00:08.7]} 37... Qd1+ {[%clk 0:00:13.2]} 38. Kf2 {[%clk 0:00:08.3]}
38... Qd2+ {[%clk 0:00:13.1]} 39. Kf3 {[%clk 0:00:08.1]} 39... Qxg5 {[%clk
0:00:12.3]} 40. Ke2 {[%clk 0:00:02.5]} 40... Qf5 {[%clk 0:00:12.3]} 41. Kd2
{[%clk 0:00:02.5]} 41... Qxd7 {[%clk 0:00:11.6]} 0-1